Cogmind - Beta 10.2 @@@ ROGUE MODE // 2021.12.05 @ 04:51:07 Player: Azken Zutik Result: Destroyed by G-67 Veteran with Electrolaser Performance ------------- Evolutions (6) 3000 Regions Visited (23) 4600 Robots Destroyed (369) 1845 Value Destroyed (15774) 15774 Prototype IDs (47) 940 Alien Tech Used (0) 0 Bonus (9695) 9695 TOTAL SCORE: 35854 Bonus ------- High Alert Combat Kills 2911 Follower Combat Kills 3492 Entered Garrisons 800 Used RIF Installer 2000 Network Hubs Disabled 400 Aligned with FarCom 300 Built Enhanced Grunts 300 A7 Reached Mainframe 300 Met R17 at Cetus 500 Friendly Fire -1308 Cogmind --------- Core Integrity 0/1150 Matter 87/300 Energy 100/100 System Corruption 26% Temperature Cool (12) Movement Core (1600) Ox31 Location -4/Factory Parts ------- > --- POWER (1) -------- (None) > --- PROPULSION (4) --- (None) > --- UTILITY (10) ----- High-capacity Storage Unit High-capacity Storage Unit High-capacity Storage Unit > --- WEAPON (4) ------- (None) > --- INVENTORY (28) --- Fission Core Heavy Treads Energy Well (500) Advanced Particle Charger Improved Medium Armor Plating Centrium Medium Armor Plating Damper Plating Damper Plating Damper Plating Advanced Thermal Shield Improved Remote Shield Improved Remote Shield Improved Remote Shield Hacking Suite Long-range Tractor Beam Improved Recalibrator Heavy Battle Rifle KE Penetrator Improved Remote Datajack Heavy Mace Longsword +1 Peak State ------------ > --- POWER ------------ Quantum Reactor > --- PROPULSION ------- Heavy Treads Centrium Heavy Treads > --- UTILITY ---------- Improved Coolant Injector High-capacity Storage Unit High-capacity Storage Unit High-capacity Storage Unit High-capacity Storage Unit High-capacity Storage Unit High-capacity Storage Unit Improved Energy Well Armor Integrity Analyzer Improved Remote Shield > --- WEAPON ----------- Neutron Cannon KE Penetrator Hypervelocity Coil Gun Improved Remote Datajack > --- INVENTORY -------- Fission Core Quantum Reactor Heavy Treads Heavy Treads High-capacity Storage Unit Energy Well Energy Well Compact Matter Pod Compact Matter Pod Advanced Particle Charger Improved Medium Armor Plating Improved Medium Armor Plating Layered Light Armor Plating Centrium Medium Armor Plating Centrium Medium Armor Plating Centrium Medium Armor Plating Damper Plating Damper Plating Advanced Thermal Shield Improved Shield Generator Improved Remote Shield Improved Remote Shield Improved Remote Shield Hacking Suite Relay Coupler [NC] Relay Coupler [NC] Relay Coupler [Sentry] Long-range Tractor Beam Gauss Rifle Gauss Rifle Flak Gun Coil Gun KE Penetrator KE Penetrator KE Penetrator KE Penetrator Railgun Railgun Improved KE Penetrator Improved KE Penetrator Improved Proton Missile Launcher Improved Proton Missile Launcher Improved Remote Datajack Longsword +1 [Rating: 118] Favorites ----------- Power Quantum Reactor Engine Reinforced Deuterium Engine Power Core Micro Fission Core Reactor Quantum Reactor Propulsion Heavy Treads Treads Heavy Treads Utility High-capacity Storage Unit Device Improved Shield Generator Storage High-capacity Storage Unit Processor Armor Integrity Analyzer Hackware Relay Coupler [NC] Protection Centrium Medium Armor Plating Weapon Gauss Rifle Energy Gun Shock Rifle Energy Cannon Beam Cannon Ballistic Gun Gauss Rifle Launcher Grenade Launcher Special Weapon Improved Remote Datajack Slashing Weapon Longsword +1 Special Melee Weapon Improved Datajack Build | -11 -10 -10 -10 -9 -8 -8 -8 -7 -7 -6 -6 -6 -6 -6 -6 -6 -5 -5 -5 -5 -4 -4 -4 ------- Run | Scr Mat Min Exi Min Mat Sto Gar Fac Gar Fac Was Fac Ext Cet Arc Hub Fac Gar Fac Gar Fac Was Fac Slots Evolved 12 | . . . . . 4 . . 2 . 2 . . . . . . 2 . . . 2 . . Power . | . . . . . . . . . . . . . . . . . . . . . . . . Propulsion 2 | . . . . . . . . . . . . . . . . . 2 . . . . . . Utility 8 | . . . . . 2 . . 2 . 2 . . . . . . . . . . 2 . . Weapon 2 | . . . . . 2 . . . . . . . . . . . . . . . . . . Parts Attached 351 | 7 7 3 1 . 28 30 8 19 23 20 12 27 30 4 7 4 15 19 11 22 13 8 33 Power 17 | 1 1 . . . 3 3 . 2 1 1 . . 2 1 . . . . . . . . 2 Engine 11 | 1 1 . . . 3 3 . 1 1 1 . . . . . . . . . . . . . Core 1 | . . . . . . . . 1 . . . . . . . . . . . . . . . Reactor 5 | . . . . . . . . . . . . . 2 1 . . . . . . . . 2 Propulsion 38 | 2 2 . . . 7 7 . 2 3 1 2 . 4 1 . . 1 . . . 1 1 4 Treads 38 | 2 2 . . . 7 7 . 2 3 1 2 . 4 1 . . 1 . . . 1 1 4 Leg . | . . . . . . . . . . . . . . . . . . . . . . . . Wheel . | . . . . . . . . . . . . . . . . . . . . . . . . Hover . | . . . . . . . . . . . . . . . . . . . . . . . . Flight . | . . . . . . . . . . . . . . . . . . . . . . . . Utility 146 | 2 2 . . . 2 3 6 5 11 9 6 10 13 1 4 4 11 18 4 15 6 5 9 Device 53 | . . . . . 1 1 2 4 2 3 3 5 3 1 2 2 7 5 3 3 2 1 3 Storage 39 | 2 2 . . . 1 . 3 . 5 2 1 . . . . . 3 10 . 7 1 1 1 Processor 4 | . . . . . . . . 1 1 . . . . . . . 1 . . 1 . . . Hackware 6 | . . . . . . . . . . . 1 1 3 . . . . . . . . 1 . Protection 44 | . . . . . . 2 1 . 3 4 1 4 7 . 2 2 . 3 1 4 3 2 5 Artifact . | . . . . . . . . . . . . . . . . . . . . . . . . Weapon 150 | 2 2 3 1 . 16 17 2 10 8 9 4 17 11 1 3 . 3 1 7 7 6 2 18 Energy Gun 5 | . 1 . . . 2 . . . 1 . . 1 . . . . . . . . . . . Energy Cannon 4 | . . 1 . . 1 . . . . . . . . 1 . . . . . 1 . . . Ballistic Gun 96 | 2 1 . . . 11 14 2 4 4 7 2 11 7 . 3 . 2 1 3 5 4 . 13 Ballistic Cannon . | . . . . . . . . . . . . . . . . . . . . . . . . Launcher 7 | . . 1 1 . . . . . 1 . . . 2 . . . . . . . . . 2 Special Weapon 14 | . . 1 . . . . . 3 . 1 1 1 2 . . . . . 2 1 1 1 . Impact Weapon . | . . . . . . . . . . . . . . . . . . . . . . . . Slashing Weapon 23 | . . . . . 2 3 . 2 2 1 1 4 . . . . 1 . 2 . 1 1 3 Piercing Weapon . | . . . . . . . . . . . . . . . . . . . . . . . . Special Melee Weapon 1 | . . . . . . . . 1 . . . . . . . . . . . . . . . Unidentified Prototypes 13 | . . . . . . 3 . 1 . . . 2 . 1 2 1 2 . . . 1 . . Parts Lost 59 | . 1 . . . 5 . . 1 1 11 . 2 8 . . . . . . 3 . . 27 Power 3 | . . . . . . . . . . . . . . . . . . . . . . . 3 Propulsion 6 | . . . . . 1 . . . . . . . . . . . . . . . . . 5 Utility 22 | . . . . . . . . 1 . 5 . . 6 . . . . . . 2 . . 8 Weapon 28 | . 1 . . . 4 . . . 1 6 . 2 2 . . . . . . 1 . . 11 Highest Loss Streak 19 | . 1 . . . 2 . . 1 1 7 . 1 2 . . . . . . 2 . . 19 Average Slot Usage (%) 91 | . 98 100 99 100 89 88 94 91 94 95 83 92 92 93 93 92 87 86 88 85 89 88 87 Engine 4 | . 14 14 14 14 9 8 9 6 7 6 6 6 . . . . . . . . . . . Reactor 2 | . . . . . . . . . . . . . 5 6 6 6 5 5 5 5 5 5 4 Treads 12 | . 27 28 28 28 17 17 18 14 14 13 7 6 6 6 6 6 11 11 11 11 10 10 9 Device 7 | . . . . . 6 1 10 13 13 12 3 7 7 6 6 5 4 11 5 7 11 4 4 Storage 25 | . 28 28 28 28 20 18 10 23 15 28 28 33 33 33 33 33 29 12 35 19 31 35 35 Processor 1 | . . . . . . . . . 3 . . . . . . . . . . 4 5 5 4 Hackware 2 | . . . . . . . . . . . 3 . 5 13 6 6 5 5 5 . . 4 3 Protection 5 | . . . . . . 7 10 . 7 6 5 11 5 . 6 6 5 14 . 9 3 . 1 Ballistic Gun 22 | . 20 . . . 27 35 36 28 26 23 13 24 23 24 26 26 21 22 18 20 18 11 13 Special Weapon 1 | . . 3 6 . . . . 1 . . 5 . 1 . . . . . . . 1 4 2 Slashing Weapon 1 | . . . . . . . . . 1 1 5 1 . . . . 1 . 2 . . 4 3 Naked Turns . | . . . . . . . . . . . . . . . . . . . . . . . . Heaviest Build 282 | 14 72 73 73 73 158 144 166 176 235 219 213 212 203 191 196 196 213 241 242 267 252 279 282 Greatest Support 150 | 40 40 40 40 40 40 44 44 50 50 50 70 70 70 80 80 80 150 150 150 150 150 140 140 Greatest Overweight (x) 48 | . 1 1 1 1 3 43 3 7 7 4 3 3 7 2 2 2 1 1 1 1 1 1 48 Average Overweight (x) 1 | . . 1 1 1 3 3 1 3 2 3 2 2 2 2 2 2 1 . 1 . 1 1 1 Largest Inventory Capacity 60 | 8 20 20 20 20 40 32 40 40 56 48 42 42 42 42 42 42 44 60 52 60 52 60 60 Average Capacity 36 | 6 18 20 20 20 34 32 18 40 25 44 38 42 42 42 42 42 42 20 52 25 52 59 59 Most Carried 60 | 2 20 20 20 20 32 32 37 40 48 47 41 42 42 42 42 42 44 52 52 52 52 60 60 Average Carried 33 | 1 14 19 19 20 29 31 13 39 22 39 36 41 40 41 41 41 41 18 51 17 51 54 58 Final Capacity 60 | 8 20 20 20 20 32 32 40 40 48 42 42 42 42 42 42 42 44 52 52 52 52 60 28 Final Carried 60 | 2 20 20 20 20 32 30 37 40 48 36 41 42 42 42 42 42 44 52 52 52 52 60 28 Class Distribution -------------------- 45% | Hauler-Mutant 16% | Hauler-Tank 16% | Hauler-Skirmisher 10% | Scavenger-Tank 4% | Tank Dominant Class ---------------- Hauler-Mutant | -10/Materials Hauler-Mutant | -10/Mines Hauler-Mutant | -10/Exiles Hauler-Mutant | -9/Mines Hauler-Skirmisher | -8/Materials Hauler-Mutant | -8/Storage Tank | -8/Garrison Hauler-Skirmisher | -7/Factory Hauler-Mutant | -7/Garrison Hauler-Tank | -6/Factory Hauler-Mutant | -6/Waste Hauler-Tank | -6/Factory Hauler-Tank | -6/Extension Hauler-Skirmisher | -6/Cetus Hauler-Tank | -6/Archives Hauler-Mutant | -6/Hub_04(d) Scavenger-Tank | -5/Factory Scavenger-Tank | -5/Garrison Hauler-Mutant | -5/Factory Scavenger-Tank | -5/Garrison Hauler-Tank | -4/Factory Hauler-Mutant | -4/Waste Hauler-Mutant | -4/Factory Resources | -11 -10 -10 -10 -9 -8 -8 -8 -7 -7 -6 -6 -6 -6 -6 -6 -6 -5 -5 -5 -5 -4 -4 -4 ----------- Run | Scr Mat Min Exi Min Mat Sto Gar Fac Gar Fac Was Fac Ext Cet Arc Hub Fac Gar Fac Gar Fac Was Fac Matter Collected 14641 | 275 529 30 . 186 983 759 476 699 1245 828 208 909 2222 136 103 204 334 1278 501 1486 294 191 765 Remotely 703 | . . . . . . . . . . . . . . . . . . 703 . . . . . Salvage Created 22169 | 146 554 128 . 89 921 935 176 817 1810 795 1644 996 3553 131 . 779 301 1494 728 1938 457 1712 2065 Parts 934 | 9 35 15 . 4 36 47 16 57 74 28 19 58 180 4 . 24 15 59 33 86 23 22 90 Haulers Intercepted 7 | . 2 . . . . . . 3 . . . 1 . . . 1 . . . . . . . Recyclers Shooed 13 | 1 . . . . . . . . . . . 1 7 . . 1 . . . . . . 3 Parts Field Recycled . | . . . . . . . . . . . . . . . . . . . . . . . . Retrieved Matter . | . . . . . . . . . . . . . . . . . . . . . . . . Parts Self-Destructed . | . . . . . . . . . . . . . . . . . . . . . . . . Prevented . | . . . . . . . . . . . . . . . . . . . . . . . . Kills | -11 -10 -10 -10 -9 -8 -8 -8 -7 -7 -6 -6 -6 -6 -6 -6 -6 -5 -5 -5 -5 -4 -4 -4 ------- Run | Scr Mat Min Exi Min Mat Sto Gar Fac Gar Fac Was Fac Ext Cet Arc Hub Fac Gar Fac Gar Fac Was Fac Combat Hostiles Destroyed 292 | . 12 7 . 4 15 16 9 13 23 19 6 16 45 1 . 1 5 24 10 28 7 6 25 Melee 13 | . . . . . 1 . . . . . 6 . . . . . . . . . . 6 . Guns 243 | . 12 3 . . 14 16 9 13 19 19 . 16 28 1 . 1 5 24 10 28 7 . 18 Cannons 2 | . . 1 . 1 . . . . . . . . . . . . . . . . . . . AOE 25 | . . 3 . 3 . . . . 4 . . . 12 . . . . . . . . . 3 Classes Destroyed 19 | 3 4 . . . 3 2 . 1 2 . 1 . 2 . . . . . . 1 . . . Worker 27 | 2 1 . . . 1 1 . 1 . . . 1 6 . . 7 . . 3 . 2 . 2 Builder 12 | . . . . . . 1 . . . . . . 7 . . . . . . . 1 . 3 Tunneler 2 | 2 . . . . . . . . . . . . . . . . . . . . . . . Hauler 7 | . 2 . . . . . . 3 . . . 1 . . . 1 . . . . . . . Recycler 14 | 1 . . . 1 2 1 . . . . . . 4 . . 2 . . . . . . 3 Carrier 1 | . . . . . . . . . . . . . . . . . . . . 1 . . . Operator 3 | . . . . . . . . . . . . . 1 . . 2 . . . . . . . Watcher 7 | . 1 . . . 2 . . . . . . . 2 . . . . 1 . 1 . . . Swarmer 63 | . 3 5 . 4 . . 8 . 7 10 . . 7 . . . . 4 . 6 3 . 6 Saboteur 2 | . . . . . . . . . . . . . 1 . . . . . 1 . . . . Grunt 125 | . 9 2 . . 10 11 . 5 8 8 . 8 23 1 . . 3 19 2 9 1 . 6 Brawler 11 | . . . . . . . . . 3 . . . 1 . . . . 1 1 2 . . 3 Duelist 11 | . . . . . 1 1 . . . . . . 2 . . . . . 2 2 . . 3 Protector 2 | . . . . . . 1 . . . . . . . . . . . . . . . . 1 Sentry 31 | . . . . . 3 3 . 2 3 . . 3 7 . . 1 . . 1 7 1 . . Hunter 7 | . . . . . 1 . 1 . . . . . 2 . . . . . 1 . . . 2 Programmer 26 | . . . . . . . . 6 1 1 . 5 . . . . 2 . 2 2 3 . 4 Behemoth 3 | . . . . . . . . . 1 . . . 2 . . . . . . . . . . Compactor 12 | . . . . . . . . . . . 6 . . . . . . . . . . 6 . Enhanced Grunt 2 | . . . . . . . . . . . . . . . . 2 . . . . . . . Thug 1 | . . . . . . . . . . . . . . 1 . . . . . . . . . Best Kill Streak 18 | 2 3 3 . 4 3 4 5 5 5 13 1 4 15 1 . 11 3 4 8 9 2 2 18 Combat Bots Only 13 | . 3 3 . 4 3 4 5 4 5 13 1 4 8 1 . 1 3 4 6 9 2 2 11 Max Kills in Single Turn 6 | 1 1 3 . 3 2 2 2 2 2 2 1 2 3 1 . 6 1 2 2 2 2 1 3 Gunslinging 1 | . . . . . . . 1 1 1 1 . . 1 . . . . 1 . 1 1 . 1 Exploded 3 | . . 3 . 3 . . . . 2 . . . 2 . . . . . . . . . 1 Melee 1 | . . . . . 1 . . . . . 1 . . . . . . . . . . 1 . Uniques/NPCs Destroyed . | . . . . . . . . . . . . . . . . . . . . . . . . Combat | -11 -10 -10 -10 -9 -8 -8 -8 -7 -7 -6 -6 -6 -6 -6 -6 -6 -5 -5 -5 -5 -4 -4 -4 -------- Run | Scr Mat Min Exi Min Mat Sto Gar Fac Gar Fac Was Fac Ext Cet Arc Hub Fac Gar Fac Gar Fac Was Fac Damage Taken 22762 | . 499 90 . 99 1124 743 174 619 627 1624 . 925 3312 63 32 190 317 525 492 1089 191 27 10000 Core 2032 | . 59 4 . . 114 53 4 59 55 95 . 35 260 15 12 . 19 44 9 31 14 . 1150 Absorbed by Shields 3932 | . . . . . 124 58 71 234 240 401 . 299 387 23 32 4 208 315 289 586 56 8 597 Reduced by Siege Mode 979 | . . . . . . . . . . . . 21 196 . . . 35 24 49 56 13 . 585 Core Remaining (%) 77 | 100 . . . 74 . . 68 . 83 . . . . . . 50 . . . 89 . . . Volleys Fired 816 | 21 51 13 . 4 39 29 14 36 108 46 9 54 135 4 1 6 14 57 25 65 20 7 58 Largest 4 | 2 2 2 . 1 4 4 4 4 4 4 1 4 4 4 4 4 4 4 4 4 4 1 4 Hottest 186 | 40 85 125 . 60 186 112 102 102 99 104 30 123 101 98 114 119 133 128 133 138 126 40 138 Shots Fired 2321 | 42 96 17 . 4 141 109 53 129 246 180 13 203 300 14 7 11 56 187 87 199 53 7 167 Gun 2158 | 42 96 4 . . 122 109 53 124 243 179 6 202 230 13 7 11 56 187 83 185 52 . 154 Cannon 27 | . . 5 . 2 19 . . . . . . . . 1 . . . . . . . . . Launcher 58 | . . 1 . 2 . . . . 3 . . . 41 . . . . . . . . . 11 Special 78 | . . 7 . . . . . 5 . 1 7 1 29 . . . . . 4 14 1 7 2 Kinetic 2070 | 42 83 . . . 99 109 53 124 200 179 6 197 230 13 7 11 56 187 83 185 52 . 154 Thermal 73 | . 13 16 . 2 41 . . . . . . . . 1 . . . . . . . . . Explosive 6 | . . 1 . 2 . . . . 3 . . . . . . . . . . . . . . Electromagnetic 101 | . . . . . 1 . . . 43 . . 5 41 . . . . . . . . . 11 Robot Hit Streak 62 | 12 15 3 . 4 23 17 11 27 31 39 7 25 43 8 12 4 24 62 19 23 14 17 41 Robot Miss Streak 4 | 1 2 2 . 1 2 2 2 2 3 4 1 3 3 1 1 2 3 3 3 2 2 1 2 Penetration Max 2 | . . . . . 1 1 . 1 1 1 . . 1 . . . 1 2 2 2 1 . 1 Secondary Targets 61 | . 1 . . . 2 5 1 2 6 11 . 1 7 1 . . 3 5 1 6 2 . 7 Max Gunslinging Chain 2 | . 1 . . . 1 1 1 1 2 1 . 1 2 1 . . 1 2 1 2 1 . 1 Shots Hit Robots 1819 | 29 66 6 . 3 108 77 26 89 173 133 79 165 234 12 6 5 47 139 69 138 29 46 140 Core Hits 834 | 7 28 8 . 5 50 35 11 34 63 43 12 59 165 4 1 23 17 53 31 73 15 11 86 Critical Hits 126 | . . . . . 1 4 . . 8 3 1 2 7 . . 1 6 19 16 36 5 3 14 Critical Kills 46 | . . . . . . 1 . . 3 1 . . 4 . . . 1 10 4 14 3 . 5 Critical Parts Destroyed 71 | . . . . . 1 3 . . 4 2 1 2 3 . . 1 5 9 10 20 2 . 8 Melee Attacks 179 | . . . . . 7 2 . 5 6 3 69 11 . . . . 5 . 9 . 4 41 17 Impact . | . . . . . . . . . . . . . . . . . . . . . . . . Slashing 177 | . . . . . 7 2 . 3 6 3 69 11 . . . . 5 . 9 . 4 41 17 Piercing . | . . . . . . . . . . . . . . . . . . . . . . . . Sneak Attacks 111 | . . . . . . . . 2 . . 69 . . . . . . . . . . 40 . Combat Hostiles 109 | . . . . . . . . . . . 69 . . . . . . . . . . 40 . Follow-up Attacks . | . . . . . . . . . . . . . . . . . . . . . . . . Damage Inflicted 45327 | 330 824 240 . 367 1713 1841 314 1537 3201 1939 4595 2630 7292 266 133 1618 1114 2481 1217 2460 914 2769 5532 Guns 29053 | 330 824 62 . . 1334 1841 314 1537 2749 1939 46 2601 3509 266 133 128 1114 2481 1217 2460 637 . 3531 Cannons 299 | . . 17 . 36 246 . . . . . . . . . . . . . . . . . . Explosions 8500 | . . 137 . 331 . . . . 452 . . 29 3783 . . 1490 . . . . 277 . 2001 Melee 7451 | . . . . . 133 . . . . . 4549 . . . . . . . . . . 2769 . Ramming . | . . . . . . . . . . . . . . . . . . . . . . . . Kinetic 27622 | 330 648 . . . 952 1841 314 1537 2011 1939 46 2528 3509 266 133 128 1114 2481 1217 2460 637 . 3531 Thermal 2493 | . 176 103 . 36 616 . . . 103 . . 29 919 . . . . . . . . . 511 Explosive 1094 | . . 137 . 331 . . . . 349 . . . . . . . . . . . 277 . . Electromagnetic 6667 | . . . . . 12 . . . 738 . . 73 2864 . . 1490 . . . . . . 1490 Impact . | . . . . . . . . . . . . . . . . . . . . . . . . Slashing 7451 | . . . . . 133 . . . . . 4549 . . . . . . . . . . 2769 . Piercing . | . . . . . . . . . . . . . . . . . . . . . . . . Highest Corruption 26 | . . . . . . 3 3 3 3 1 15 15 15 15 15 17 2 2 6 7 2 2 26 Average Corruption 6 | . . . . . . 2 3 2 3 1 13 15 15 15 15 15 1 2 2 6 1 2 5 Corruption Purged . | . . . . . . . . . . . . . . . . . . . . . . . . Effects 847 | . . . . . . 23 21 23 51 1 60 132 218 30 55 12 7 24 20 87 5 16 62 Message Errors 174 | . . . . . . 4 7 6 17 . 9 23 29 7 14 6 3 12 5 16 1 5 10 Matter Fused 136 | . . . . . . 6 4 . 13 . 8 24 37 3 11 3 . . 2 14 . . 11 Heat Flow Errors 90 | . . . . . . 4 6 5 6 . 7 9 11 4 7 2 2 2 5 10 . 3 7 Energy Discharges 79 | . . . . . . 3 3 5 4 1 4 9 18 4 5 . 2 3 4 8 1 1 4 Parts Rejected 4 | . . . . . . . . . . . 1 1 1 . . . . . . . . . 1 Data Loss (minor) 75 | . . . . . . 2 . 4 5 . 6 10 15 2 6 . . . 3 10 2 7 3 Data Loss (major) 19 | . . . . . . . . . . . 3 2 6 2 2 . . . . 2 . . 2 Misfires 18 | . . . . . . . . . . . 4 1 6 1 3 . . . . 2 . . 1 Alerts 12 | . . . . . . . . . . . 1 2 5 . 4 . . . . . . . . Misdirections 48 | . . . . . . . . . . . 4 14 25 2 3 . . . . . . . . Targeting Errors 166 | . . . . . . 4 1 3 6 . 13 30 58 5 . . . 5 1 20 1 . 19 Weapon Failures 26 | . . . . . . . . . . . . 7 7 . . 1 . 2 . 5 . . 4 Overload Shots . | . . . . . . . . . . . . . . . . . . . . . . . . Overflow Damage 318 | . . . . 32 . . . . 8 . 6 . 102 . . 53 . . . . 26 19 72 Projectiles . | . . . . . . . . . . . . . . . . . . . . . . . . Explosions 293 | . . . . 32 . . . . 8 . . . 102 . . 53 . . . . 26 . 72 Melee 25 | . . . . . . . . . . . 6 . . . . . . . . . . 19 . Knockbacks . | . . . . . . . . . . . . . . . . . . . . . . . . Impact . | . . . . . . . . . . . . . . . . . . . . . . . . Kinetic . | . . . . . . . . . . . . . . . . . . . . . . . . Secondary . | . . . . . . . . . . . . . . . . . . . . . . . . Self-Inflicted Damage 481 | . . 8 . 70 . . . . . . . . . . . 190 . . . . . . 213 Shots 14 | . . 1 . 2 . . . . . . . . . . . 2 . . . . . . 9 Rammed . | . . . . . . . . . . . . . . . . . . . . . . . . Targets Rammed . | . . . . . . . . . . . . . . . . . . . . . . . . Kicked . | . . . . . . . . . . . . . . . . . . . . . . . . Crushed . | . . . . . . . . . . . . . . . . . . . . . . . . Highest Temperature 414 | . 78 132 . 20 345 414 239 260 198 389 272 264 330 241 224 210 231 200 273 254 68 267 406 Average Temperature 84 | . 20 33 . 10 111 118 99 39 75 140 94 87 72 70 82 82 98 88 75 87 30 114 100 Received Heat Transfer 4201 | . 234 6 . . 375 303 . 104 108 408 . 306 697 . 4 . 79 219 47 155 6 . 1150 Effects 8 | . . . . . 1 2 . . . . 3 . . 1 . . . . . . . . 1 Energy Bleed 3 | . . . . . 1 1 . . . . . . . 1 . . . . . . . . . Interference 3 | . . . . . . . . . . . 3 . . . . . . . . . . . . Matter Decay 1 | . . . . . . 1 . . . . . . . . . . . . . . . . . Short Circuit 1 | . . . . . . . . . . . . . . . . . . . . . . . 1 Siege Activations 65 | . . . . . . . . . . . . 9 16 . . 1 2 13 3 13 3 . 5 Total Turns 1755 | . . . . . . . . . . . . 103 294 . . 10 61 524 67 494 39 . 163 Longest Duration 202 | . . . . . . . . . . . . 32 51 . . 10 42 140 34 202 16 . 45 Robots Corrupted 19 | . . . . . . . . . 7 . . . 6 . . 2 . . . . . . 4 Combat Hostiles 9 | . . . . . . . . . . . . . 5 . . . . . . . . . 4 Parts Fried 30 | . . . . . . . . . 2 . . 1 10 . . 11 . . . . . . 6 Impact Corruptions . | . . . . . . . . . . . . . . . . . . . . . . . . Robots Melted . | . . . . . . . . . . . . . . . . . . . . . . . . Combat Hostiles . | . . . . . . . . . . . . . . . . . . . . . . . . Parts Melted 2 | . . . . . 1 . . . . . . . 1 . . . . . . . . . . Heat Transferred 3748 | . 407 235 . 74 1332 . . . 150 . . 50 1000 . . . . . . . . . 500 Parts Sabotaged . | . . . . . . . . . . . . . . . . . . . . . . . . Parts Stolen . | . . . . . . . . . . . . . . . . . . . . . . . . Parts Stripped . | . . . . . . . . . . . . . . . . . . . . . . . . Power Chain Reactions 23 | . . . . . . . . . 1 . . 1 18 . . . . . . . . . 3 Missiles Intercepted . | . . . . . . . . . . . . . . . . . . . . . . . . Alert | -11 -10 -10 -10 -9 -8 -8 -8 -7 -7 -6 -6 -6 -6 -6 -6 -6 -5 -5 -5 -5 -4 -4 -4 ------- Run | Scr Mat Min Exi Min Mat Sto Gar Fac Gar Fac Was Fac Ext Cet Arc Hub Fac Gar Fac Gar Fac Was Fac Peak Influence 1187 | 25 177 201 . 95 216 966 1007 542 968 719 244 245 550 734 461 1026 978 1187 655 1149 832 278 560 Initial 627 | . 16 11 . . . 44 627 528 163 508 214 . 63 39 293 . 502 512 623 434 602 248 . Average 437 | 10 62 106 . 56 101 501 915 276 733 598 98 105 248 444 247 157 732 908 594 948 693 80 424 Maximum Alert Level 4 | . . 1 . . 1 3 3 2 3 3 1 1 2 3 2 3 3 4 2 4 3 1 2 Low Security (%) 35 | 100 100 80 . 100 97 18 . 24 5 . 63 92 45 9 38 98 . . . . . 76 3 Level 1 15 | . . 19 . . 2 11 . 65 4 . 36 7 33 38 36 . . . . . . 23 18 Level 2 22 | . . . . . . 37 14 9 18 88 . . 21 39 24 . 30 14 100 17 54 . 77 Level 3 23 | . . . . . . 32 85 . 71 11 . . . 11 . 1 69 78 . 35 45 . . Level 4 3 | . . . . . . . . . . . . . . . . . . 7 . 46 . . . Level 5 . | . . . . . . . . . . . . . . . . . . . . . . . . High Security . | . . . . . . . . . . . . . . . . . . . . . . . . Max Security . | . . . . . . . . . . . . . . . . . . . . . . . . Squads Dispatched 56 | . 3 . . . 2 8 . 5 . 4 . 7 6 . . . 2 . 5 . 4 . 10 Investigation 12 | . 3 . . . 1 4 . 1 . 1 . 1 1 . . . . . . . . . . Extermination 16 | . . . . . . . . 4 . 1 . 4 . . . . 1 . 1 . 1 . 4 Reinforcement 13 | . . . . . 1 1 . . . 1 . 2 4 . . . . . 1 . 1 . 2 Assault 7 | . . . . . . 2 . . . . . . 1 . . . 1 . 1 . . . 2 Garrison 8 | . . . . . . 1 . . . 1 . . . . . . . . 2 . 2 . 2 Intercept . | . . . . . . . . . . . . . . . . . . . . . . . . Construction Impeded 7 | . . . . . . 1 . . . 1 . . 2 . . . . . . . 1 . 2 Haulers Reinforced 1 | . . . . . . . . . . . . 1 . . . . . . . . . . . Stealth | -11 -10 -10 -10 -9 -8 -8 -8 -7 -7 -6 -6 -6 -6 -6 -6 -6 -5 -5 -5 -5 -4 -4 -4 --------- Run | Scr Mat Min Exi Min Mat Sto Gar Fac Gar Fac Was Fac Ext Cet Arc Hub Fac Gar Fac Gar Fac Was Fac Distress Signals 23 | . 2 . . . 7 2 . 1 . 1 . . 3 . . 2 . . . . 1 . 4 Communications Jammed . | . . . . . . . . . . . . . . . . . . . . . . . . Distress Signals . | . . . . . . . . . . . . . . . . . . . . . . . . Times Spotted 473 | . 27 8 . 4 36 45 11 19 27 28 6 23 56 22 10 5 11 17 13 30 10 6 59 Peak Tracking Total 13 | . 4 3 . 4 5 9 4 6 6 7 2 4 7 7 1 3 5 3 6 7 4 3 13 Tactical Retreats 27 | . 2 1 . . 1 2 1 1 5 2 . 2 1 . . . . 3 . 4 1 . 1 Traps | -11 -10 -10 -10 -9 -8 -8 -8 -7 -7 -6 -6 -6 -6 -6 -6 -6 -5 -5 -5 -5 -4 -4 -4 ------- Run | Scr Mat Min Exi Min Mat Sto Gar Fac Gar Fac Was Fac Ext Cet Arc Hub Fac Gar Fac Gar Fac Was Fac Traps Triggered 44 | . 2 . . . 3 9 4 3 5 1 . 1 2 . . 2 . 5 . 5 1 . 1 Indirectly 2 | . . . . . . . . . . . . . . . . 2 . . . . . . . Trap Hack Attempts . | . . . . . . . . . . . . . . . . . . . . . . . . Triggered . | . . . . . . . . . . . . . . . . . . . . . . . . Disarmed . | . . . . . . . . . . . . . . . . . . . . . . . . Reprogrammed . | . . . . . . . . . . . . . . . . . . . . . . . . Reused . | . . . . . . . . . . . . . . . . . . . . . . . . Traps Extracted . | . . . . . . . . . . . . . . . . . . . . . . . . Installed . | . . . . . . . . . . . . . . . . . . . . . . . . Triggered . | . . . . . . . . . . . . . . . . . . . . . . . . Machines | -11 -10 -10 -10 -9 -8 -8 -8 -7 -7 -6 -6 -6 -6 -6 -6 -6 -5 -5 -5 -5 -4 -4 -4 ---------- Run | Scr Mat Min Exi Min Mat Sto Gar Fac Gar Fac Was Fac Ext Cet Arc Hub Fac Gar Fac Gar Fac Was Fac Machines Disabled 72 | . 1 1 . . . 9 1 1 4 1 . 1 4 2 2 34 1 3 . . 2 . 5 Max in Single Turn 20 | . 1 1 . . . 2 1 1 2 1 . 1 1 1 1 20 1 1 . . 1 . . Garrison Access 4 | . . . . . . . . . . 1 . 2 . . . . . . . . 1 . . Garrison Relay 5 | . . . . . . . 1 . 2 . . . . . . . . 2 . . . . . Phase Generator 1 | . . . . . . . . . 1 . . . . . . . . . . . . . . Network Hub 2 | . . . . . . . . . . . . . . . . 2 . . . . . . . Machines Sabotaged . | . . . . . . . . . . . . . . . . . . . . . . . . Garrisons Compromised . | . . . . . . . . . . . . . . . . . . . . . . . . Overloaded Fab Kills . | . . . . . . . . . . . . . . . . . . . . . . . . Fab Network Shutdowns 1 | . . . . . . . . . . . . . . . . . 1 . . . . . . Hacking | -11 -10 -10 -10 -9 -8 -8 -8 -7 -7 -6 -6 -6 -6 -6 -6 -6 -5 -5 -5 -5 -4 -4 -4 --------- Run | Scr Mat Min Exi Min Mat Sto Gar Fac Gar Fac Was Fac Ext Cet Arc Hub Fac Gar Fac Gar Fac Was Fac Machines Accessed 85 | . 7 . 2 . 5 12 . 16 . 3 . 9 11 1 1 1 5 . 6 . 3 . 3 Terminals 56 | . 5 . . . 5 9 . 7 . 1 . 6 11 1 . 1 3 . 3 . 1 . 3 Fabricators 2 | . . . . . . . . 1 . . . . . . . . 1 . . . . . . Repair Stations 6 | . 1 . . . . 1 . 3 . . . . . . . . . . 1 . . . . Recycling Units 5 | . 1 . . . . 1 . 2 . 1 . . . . . . . . . . . . . Scanalyzers 5 | . . . . . . . . 2 . . . 1 . . . . . . 1 . 1 . . Garrison Access 8 | . . . . . . 1 . 1 . 1 . 2 . . . . 1 . 1 . 1 . . Total Hacks 235 | . 20 . 24 . 9 23 . 32 . 4 . 14 15 2 25 2 20 . 27 . 10 . 8 Successful 135 | . 15 . 24 . 3 10 . 15 . 4 . 5 7 . 25 . 8 . 15 . 3 . 1 Failed 99 | . 4 . . . 6 13 . 17 . . . 9 8 2 . 2 12 . 12 . 7 . 7 Catastrophic 22 | . . . . . 2 2 . 2 . . . 1 1 1 . 1 3 . 5 . 3 . 1 Database Lockouts 1 | . 1 . . . . . . . . . . . . . . . . . . . . . . Manual 78 | . 15 . 1 . 7 12 . 16 . 1 . 3 5 1 . 2 . . 15 . . . . Terminals 132 | . 13 . . . 9 19 . 16 . 2 . 10 15 2 . 2 15 . 19 . 2 . 8 Fabricators 5 | . . . . . . . . 1 . . . . . . . . 4 . . . . . . Repair Stations 14 | . 6 . . . . 1 . 5 . . . . . . . . . . 2 . . . . Recycling Units 6 | . 1 . . . . 2 . 2 . 1 . . . . . . . . . . . . . Scanalyzers 21 | . . . . . . . . 7 . . . 2 . . . . . . 5 . 7 . . Garrison Access 8 | . . . . . . 1 . 1 . 1 . 2 . . . . 1 . 1 . 1 . . Terminal Hacks 90 | . 5 . 24 . 1 7 . 6 . 2 . 3 7 . 25 . 4 . 5 . . . 1 Record 49 | . . . 23 . . . . . . . . . . . 25 . . . . . . . 1 Part Schematic 3 | . . . . . . 1 . . . 1 . . . . . . . . 1 . . . . Robot Schematic 2 | . 2 . . . . . . . . . . . . . . . . . . . . . . Prototype ID Bank 3 | . 1 . . . . 1 . . . 1 . . . . . . . . . . . . . Open Door 8 | . . . . . . . . . . . . 1 7 . . . . . . . . . . Branch Access Points 3 | . . . . . 1 . . . . . . 1 . . . . 1 . . . . . . Emergency Access Points 1 | . . . . . . . . . . . . . . . . . . . 1 . . . . Terminal Index 2 | . . . . . . . . . . . . . . . . . 1 . 1 . . . . Scanalyzer Index 1 | . . . . . . . . . . . . . . . . . . . 1 . . . . Garrison Index 1 | . . . . . . . . . . . . . . . . . . . 1 . . . . Alert Level 1 | . . . . . . 1 . . . . . . . . . . . . . . . . . Unreport Threat 5 | . 1 . . . . 3 . 1 . . . . . . . . . . . . . . . Locate Traps 4 | . . . . . . . . 4 . . . . . . . . . . . . . . . Hauler Manifests 3 | . 1 . . . . 1 . 1 . . . . . . . . . . . . . . . Registered Components 1 | . . . . . . . . . . . . . . . . . 1 . . . . . . Zone Layout 2 | . . . . . . . . . . . . 1 . . . . 1 . . . . . . EX-Prototype ID Bank 1 | . . . 1 . . . . . . . . . . . . . . . . . . . . Fabricator Hacks 3 | . . . . . . . . . . . . . . . . . 3 . . . . . . Load Schematic 1 | . . . . . . . . . . . . . . . . . 1 . . . . . . Build 2 | . . . . . . . . . . . . . . . . . 2 . . . . . . Repair Station Hacks 9 | . 6 . . . . . . 1 . . . . . . . . . . 2 . . . . Scan Component 5 | . 3 . . . . . . 1 . . . . . . . . . . 1 . . . . Repair 4 | . 3 . . . . . . . . . . . . . . . . . 1 . . . . Recycling Unit Hacks . | . . . . . . . . . . . . . . . . . . . . . . . . Scanalyzer 11 | . . . . . . . . 5 . . . . . . . . . . 4 . 2 . . Insert Component 6 | . . . . . . . . 3 . . . . . . . . . . 1 . 2 . . Analyze 5 | . . . . . . . . 2 . . . . . . . . . . 3 . . . . Garrison Access Hacks 8 | . . . . . . 1 . 1 . 1 . 2 . . . . 1 . 1 . 1 . . Unlock Access 4 | . . . . . . 1 . 1 . . . . . . . . 1 . 1 . . . . Seal Access 4 | . . . . . . . . . . 1 . 2 . . . . . . . . 1 . . Unauthorized Hacks 14 | . 4 . . . 2 2 . 2 . 1 . . . . . . . . 3 . . . . Terminals 10 | . 3 . . . 2 1 . 1 . . . . . . . . . . 3 . . . . Track 5 | . 1 . . . 1 1 . 1 . . . . . . . . . . 1 . . . . Botnet 5 | . 2 . . . 1 . . . . . . . . . . . . . 2 . . . . Fabricators . | . . . . . . . . . . . . . . . . . . . . . . . . Repair Stations . | . . . . . . . . . . . . . . . . . . . . . . . . Recycling Units 4 | . 1 . . . . 1 . 1 . 1 . . . . . . . . . . . . . Tunnel 4 | . 1 . . . . 1 . 1 . 1 . . . . . . . . . . . . . Scanalyzers . | . . . . . . . . . . . . . . . . . . . . . . . . Garrison Access . | . . . . . . . . . . . . . . . . . . . . . . . . Data Cores Recovered . | . . . . . . . . . . . . . . . . . . . . . . . . Used . | . . . . . . . . . . . . . . . . . . . . . . . . Hacking Detections 58 | . 5 . . . 4 9 . 13 . 1 . 6 5 1 . 1 3 . 6 . 2 . 2 Full Trace Events 3 | . . . . . . 1 . . . . . 1 1 . . . . . . . . . . Feedback Events 1 | . . . . . . 1 . . . . . . . . . . . . . . . . . Corruption 1 | . . . . . . 1 . . . . . . . . . . . . . . . . . Feedback Blocked . | . . . . . . . . . . . . . . . . . . . . . . . . Robot Schematics Acquired 2 | . 2 . . . . . . . . . . . . . . . . . . . . . . Robots Built 2 | . . . . . . . . . . . . . . . . . 2 . . . . . . Matter 306 | . . . . . . . . . . . . . . . . . 306 . . . . . . Time 162 | . . . . . . . . . . . . . . . . . 162 . . . . . . Total Robot Build Rating 2 | . . . . . . . . . . . . . . . . . 2 . . . . . . Part Schematics Acquired 5 | . . . . . . 1 . 2 . 1 . . . . . . . . 1 . . . . Parts Built . | . . . . . . . . . . . . . . . . . . . . . . . . Matter . | . . . . . . . . . . . . . . . . . . . . . . . . Time . | . . . . . . . . . . . . . . . . . . . . . . . . Total Part Build Rating . | . . . . . . . . . . . . . . . . . . . . . . . . Parts Repaired 4 | . 3 . . . . . . . . . . . . . . . . . 1 . . . . Time 186 | . 78 . . . . . . . . . . . . . . . . . 108 . . . . Parts Recycled . | . . . . . . . . . . . . . . . . . . . . . . . . Recycled Matter . | . . . . . . . . . . . . . . . . . . . . . . . . Retrieved Matter . | . . . . . . . . . . . . . . . . . . . . . . . . Retrieved Components . | . . . . . . . . . . . . . . . . . . . . . . . . Parts Scanalyzed 5 | . . . . . . . . 3 . . . . . . . . . . 1 . 1 . . Part Schematics Acquired 2 | . . . . . . . . 2 . . . . . . . . . . . . . . . Parts Damaged . | . . . . . . . . . . . . . . . . . . . . . . . . Bothacking | -11 -10 -10 -10 -9 -8 -8 -8 -7 -7 -6 -6 -6 -6 -6 -6 -6 -5 -5 -5 -5 -4 -4 -4 ------------ Run | Scr Mat Min Exi Min Mat Sto Gar Fac Gar Fac Was Fac Ext Cet Arc Hub Fac Gar Fac Gar Fac Was Fac Used RIF Installer 4 | . . . . . . . 1 . 1 . . . . . . . . 1 . 1 . . . Hotswap 1 | . . . . . . . . . . . . . . . . . . 1 . . . . . Patrol Navigation 1 | . . . . . . . . . 1 . . . . . . . . . . . . . . Program Shield 1 | . . . . . . . . . . . . . . . . . . . . 1 . . . Robots Hacked 22 | . . . . . . . . 1 . 1 6 . 4 . . . . . 2 . 1 6 1 Non-combat 8 | . . . . . . . . 1 . 1 . . 2 . . . . . 2 . 1 . 1 Combat 14 | . . . . . . . . . . . 6 . 2 . . . . . . . . 6 . Robot Hacks Applied 26 | . . . . . . . . 1 . 1 6 . 7 . . . . . 2 . 1 7 1 parse_system 6 | . . . . . . . . 1 . . . . 3 . . . . . 1 . . . 1 find_chute 2 | . . . . . . . . . . 1 . . . . . . . . . . 1 . . purge_threat 3 | . . . . . . . . . . . . . 3 . . . . . . . . . . block_reporting 1 | . . . . . . . . . . . . . . . . . . . 1 . . . . ignore_targets 13 | . . . . . . . . . . . 6 . . . . . . . . . . 7 . formatsys_low 1 | . . . . . . . . . . . . . 1 . . . . . . . . . . Relay Couplers Released 26 | . . . . . . . 5 4 7 . . . . . . . . 10 . . . . . Machine Destruction 22 | . . . . . . . 5 . 7 . . . . . . . . 10 . . . . . Programmers 4 | . . . . . . . . 4 . . . . . . . . . . . . . . . Attached 4 | . . . . . . . . . . . 1 . 2 . . . . . . . . 1 . Robots Rewired 20 | . . . . . . . . . 3 . . . 10 . . . . . . 7 . . . Allies Hacked 3 | . . . . . . . . . . . . . . . . . . . . . 1 . 2 Hacks Repelled . | . . . . . . . . . . . . . . . . . . . . . . . . Allies | -11 -10 -10 -10 -9 -8 -8 -8 -7 -7 -6 -6 -6 -6 -6 -6 -6 -5 -5 -5 -5 -4 -4 -4 -------- Run | Scr Mat Min Exi Min Mat Sto Gar Fac Gar Fac Was Fac Ext Cet Arc Hub Fac Gar Fac Gar Fac Was Fac Total Allies 72 | . . . . 4 . 11 . . 3 . . . 21 5 . . 2 . . 7 . 19 . Largest Group 21 | . . . . 4 4 11 . . 3 . . . 21 18 6 3 2 . . 7 7 19 19 Highest-Rated Group 963 | . . . . 71 71 272 . . 63 . . . 795 963 489 211 20 . . 254 254 714 714 Highest-Rated Ally 156 | . . . . 31 31 99 . . 21 . . . 156 156 156 94 10 . . 46 46 50 50 Total Orders 13 | . . . . . . . . . 2 . . . 1 4 3 1 2 . . . . . . STAY 5 | . . . . . . . . . . . . . . 1 2 1 1 . . . . . . FOLLOW 3 | . . . . . . . . . . . . . . 1 1 . 1 . . . . . . GUARD 4 | . . . . . . . . . 1 . . . 1 2 . . . . . . . . . AID 1 | . . . . . . . . . 1 . . . . . . . . . . . . . . Ally Attacks 535 | . . . . . 28 155 . . 8 . . . 5 165 30 18 . . . . 43 . 83 Total Damage 13449 | . . . . . 350 3181 . . 241 . . . 46 4486 730 589 . . . . 625 . 3201 Kills 108 | . . . . . 5 38 . . . . . . 1 28 4 5 . . . . 6 . 21 Allies Corrupted 2 | . . . . . . . . . . . . . . . . 2 . . . . . . . Allies Melted 1 | . . . . . . 1 . . . . . . . . . . . . . . . . . Intel | -11 -10 -10 -10 -9 -8 -8 -8 -7 -7 -6 -6 -6 -6 -6 -6 -6 -5 -5 -5 -5 -4 -4 -4 ------- Run | Scr Mat Min Exi Min Mat Sto Gar Fac Gar Fac Was Fac Ext Cet Arc Hub Fac Gar Fac Gar Fac Was Fac Robot Analysis Total . | . . . . . . . . . . . . . . . . . . . . . . . . Derelict Logs Recovered 2 | . . 1 . 1 . . . . . . . . . . . . . . . . . . . Drone Launches . | . . . . . . . . . . . . . . . . . . . . . . . . Drone Recoveries . | . . . . . . . . . . . . . . . . . . . . . . . . Exploration | -11 -10 -10 -10 -9 -8 -8 -8 -7 -7 -6 -6 -6 -6 -6 -6 -6 -5 -5 -5 -5 -4 -4 -4 ------------- Run | Scr Mat Min Exi Min Mat Sto Gar Fac Gar Fac Was Fac Ext Cet Arc Hub Fac Gar Fac Gar Fac Was Fac Turns Passed 35154 | 193 1533 514 453 664 1905 2082 1107 2426 3281 947 1105 2210 3314 598 1302 342 982 2467 1146 2281 922 1721 1659 Spaces Moved 13589 | 81 698 256 250 357 678 750 583 971 1395 275 402 860 1334 254 253 99 391 1009 417 894 266 490 626 Core 9 | 6 . . . . . 2 . . . . . . . . . . . . . . . . 1 Treads 13580 | 75 698 256 250 357 678 748 583 971 1395 275 402 860 1334 254 253 99 391 1009 417 894 266 490 625 Legs . | . . . . . . . . . . . . . . . . . . . . . . . . Wheels . | . . . . . . . . . . . . . . . . . . . . . . . . Hover . | . . . . . . . . . . . . . . . . . . . . . . . . Flight . | . . . . . . . . . . . . . . . . . . . . . . . . Fastest Speed 50 | 50 160 180 180 180 220 205 145 205 152 192 200 200 200 200 200 200 180 160 180 160 180 180 180 Average Speed 192 | 151 177 180 180 180 220 229 165 214 197 215 207 200 200 200 200 200 180 167 180 168 180 180 186 Slowest Speed 2450 | 160 180 180 180 180 225 2200 205 285 300 225 220 220 300 200 200 200 180 180 180 180 180 180 2450 Overloaded Moves . | . . . . . . . . . . . . . . . . . . . . . . . . Propulsion Burnouts . | . . . . . . . . . . . . . . . . . . . . . . . . Robots Hopped . | . . . . . . . . . . . . . . . . . . . . . . . . Cave-ins Triggered 4 | . . . . . . . . . . . . . . . . . . . . . . . 4 Exploration Rate (%) 53 | 5 95 38 67 78 41 95 51 31 86 8 85 26 96 80 94 17 17 76 15 54 7 94 19 Regions Visited 23 Branch Regions 8 Pre-discovered Areas 6 | . 1 . 1 1 . 1 . 1 . 1 . . . . . . . . . . . . . Known Exits Taken 6 | . . . . . 1 1 . 1 . . . 1 . . . . 1 . 1 . . . . Unknown Exits Taken 9 | 1 1 1 1 1 . . . . . . . . 1 1 1 1 . . . . . . . Scrap Searched 4 | . . 2 . 2 . . . . . . . . . . . . . . . . . . . Spaces Dug 68 | . . 6 . . 3 2 . 3 6 3 . 10 . . . . 5 . 9 . 4 . 17 Terrain Destroyed 629 | . . 11 . 14 3 4 5 3 100 3 . 12 26 . . 324 7 3 11 2 56 . 45 Melee 62 | . . . . . 3 2 . 3 6 3 . 10 . . . . 5 . 9 . 4 . 17 Projectile 65 | . . 6 . . . 2 5 . 9 . . . 11 . . 1 2 3 2 2 1 . 21 AOE 502 | . . 5 . 14 . . . . 85 . . 2 15 . . 323 . . . . 51 . 7 Terrain Rammed . | . . . . . . . . . . . . . . . . . . . . . . . . Walls Destroyed . | . . . . . . . . . . . . . . . . . . . . . . . . Machines Disabled . | . . . . . . . . . . . . . . . . . . . . . . . . Actions | -11 -10 -10 -10 -9 -8 -8 -8 -7 -7 -6 -6 -6 -6 -6 -6 -6 -5 -5 -5 -5 -4 -4 -4 --------- Run | Scr Mat Min Exi Min Mat Sto Gar Fac Gar Fac Was Fac Ext Cet Arc Hub Fac Gar Fac Gar Fac Was Fac Total 20960 | 110 899 278 255 376 1007 1035 697 1228 1744 538 603 1234 1786 345 1046 236 631 1664 749 1547 668 1291 993 Wait 5291 | . 121 5 . 14 189 191 39 163 104 174 83 263 242 50 777 121 183 505 273 482 356 719 237 Move 13571 | 80 697 255 249 356 677 750 582 971 1394 275 401 859 1333 253 252 98 391 1008 417 893 266 489 625 Hop . | . . . . . . . . . . . . . . . . . . . . . . . . Pick Up 390 | 2 20 1 2 1 36 12 37 15 53 14 11 12 24 14 5 3 6 43 6 49 4 15 5 Fast Attach 120 | 7 3 . . . 8 16 5 6 10 . 4 1 5 2 . 1 10 18 3 13 2 1 5 Attach 91 | . 2 . 1 . 10 2 3 2 4 13 1 7 13 . . 1 1 1 . 3 3 4 20 Detach 31 | . . . . . 4 2 . . 3 2 4 . . 1 . . 3 6 . 4 1 . 1 Swap 140 | . 2 3 . . 10 12 . 11 9 7 7 19 12 2 7 2 4 . 8 6 8 3 8 Drop 258 | . 3 1 3 1 27 19 9 15 18 4 14 8 17 19 4 4 14 16 8 22 4 12 16 Fire 816 | 21 51 13 . 4 39 29 14 36 108 46 9 54 135 4 1 6 14 57 25 65 20 7 58 Melee 179 | . . . . . 7 2 . 5 6 3 69 11 . . . . 5 . 9 . 4 41 17 Ram . | . . . . . . . . . . . . . . . . . . . . . . . . Kick . | . . . . . . . . . . . . . . . . . . . . . . . . Crush . | . . . . . . . . . . . . . . . . . . . . . . . . Escape Stasis 41 | . . . . . . . 8 4 4 . . . 4 . . . . 10 . 10 . . 1 Rewire 32 | . . . . . . . . . 31 . . . 1 . . . . . . . . . . Trap . | . . . . . . . . . . . . . . . . . . . . . . . . Miscellaneous . | . . . . . . . . . . . . . . . . . . . . . . . . Route ------- -11/Scrapyard -10/Materials (discovered 3 exits: [*Mat x2] / [*Min]) -10/Mines (discovered 2 exits: [*Mat] / *Exi) -10/Exiles -9/Mines -8/Materials (discovered 2 exits: *Fac / *Sto) -8/Storage (discovered 3 exits: *Fac / [*Rec] / Gar) -8/Garrison -7/Factory (discovered 3 exits: *Fac x2 / Gar) -7/Garrison (discovered 3 exits: *Fac x3) -6/Factory -6/Waste -6/Factory (discovered 4 exits: *Low x2 / *Ext x2) -6/Extension (discovered 2 exits: *Fac / *Cet) -6/Cetus (discovered 2 exits: *Fac / *Arc) -6/Archives (discovered 3 exits: *Fac / *Hub x2) -6/Hub_04(d) -5/Factory (discovered 3 exits: Upp x2 / Gar) -5/Garrison (discovered 3 exits: *Fac x3) -5/Factory -5/Garrison (discovered 2 exits: *Fac x2) -4/Factory -4/Waste -4/Factory History --------- Turn | Location | Event 9 | -11/Scrapyard | Discovered new exit (range 15) 194 | -11/Scrapyard | Entered Materials 309 | -10/Materials | Build established: Mutant 330 | -10/Materials | Discovered new exit (range 15) 655 | -10/Materials | Build established: Hauler-Mutant 1048 | -10/Materials | Discovered new exit (range 14) 1165 | -10/Materials | Central database locked down 1243 | -10/Materials | Repaired Assault Rifle 1271 | -10/Materials | Repaired Lgt. Treads 1298 | -10/Materials | Repaired Lgt. Treads 1551 | -10/Materials | Discovered new exit (range 16) 1727 | -10/Materials | Entered Mines 1751 | -10/Mines | Deemed a non-threat by the Exiles lab entrance 1751 | -10/Mines | Discovered new exit (range 5) 1882 | -10/Mines | Discovered new exit (range 5) 1900 | -10/Mines | Received a Rocket Launcher from a helpful Derelict 1930 | -10/Mines | Learned 2 Materials zone layouts 2059 | -10/Mines | Assembled infested the area 2241 | -10/Mines | Entered Exiles 2285 | -10/Exiles | Met 8R-AWN 2312 | -10/Exiles | Met EX-HEX 2367 | -10/Exiles | Met EX-BIN 2393 | -10/Exiles | Aligned with FarCom system 2394 | -10/Exiles | Given EX-Vault access code 2441 | -10/Exiles | Opened EX-Vault 2455 | -10/Exiles | Found Longsword +1 2494 | -10/Exiles | Warned to stay clear of 0b10 Research branches 2546 | -10/Exiles | Met EX-DEC 2588 | -10/Exiles | Learned location of Zion (-7) 2674 | -10/Exiles | Discovered new exit (range 11) 2694 | -10/Exiles | Left Exiles lab with Longsword +1 2694 | -10/Exiles | Entered Mines 3130 | -9/Mines | Assisted by bots powering up and referring to "LRC-V3" 3243 | -9/Mines | Received a Mining Laser from a helpful Derelict 3337 | -9/Mines | Discovered new exit (range 6) 3358 | -9/Mines | Entered Materials 3358 | -8/Materials | Accompanied by 4 allies 3358 | -8/Materials | Evolved 4 slots: Utility x2, Weapon x2 3662 | -8/Materials | Build established: Hauler-Skirmisher 3686 | -8/Materials | Discovered new exit (range 14) 4669 | -8/Materials | Discovered new exit (range 8) 5016 | -8/Materials | Identified exit to Storage 5263 | -8/Materials | Entered Storage 5305 | -8/Storage | Met 01-MTF 5551 | -8/Storage | Build established: Hauler-Mutant 5570 | -8/Storage | Assisted by bots powering up and referring to "LRC-V3" 5874 | -8/Storage | Build established: Commander-Mutant 6239 | -8/Storage | Build established: Hauler-Mutant 6463 | -8/Storage | First assault squad dispatched 6495 | -8/Storage | Discovered new exit (range 16) 6814 | -8/Storage | Build established: Hauler-Skirmisher 7065 | -8/Storage | Used back door to open Recycling access 7065 | -8/Storage | Discovered new exit (range 5) 7286 | -8/Storage | Garrison activated, responded to threat 7345 | -8/Storage | Identified exit to Garrison 7345 | -8/Storage | Entered Garrison 7446 | -8/Garrison | Triggered checkpoint 7639 | -8/Garrison | Build established: Tank 7694 | -8/Garrison | Discovered new exit (range 10) 7715 | -8/Garrison | Installed Relay Interface Framework 7808 | -8/Garrison | Triggered checkpoint 7968 | -8/Garrison | Garrison Relay disabled 8297 | -8/Garrison | Build established: Hauler-Mutant 8452 | -8/Garrison | Entered Factory 8452 | -7/Factory | Evolved 2 slots: Utility x2 9078 | -7/Factory | Build established: Hauler-Skirmisher 9166 | -7/Factory | Discovered new exit (range 9) 9496 | -7/Factory | Build established: Hauler-Mutant 9837 | -7/Factory | Build established: Hauler-Skirmisher 10255 | -7/Factory | Build established: Hauler-Mutant 10842 | -7/Factory | Discovered new exit (range 7) 10878 | -7/Factory | Identified exit to Garrison 10878 | -7/Factory | Entered Garrison 11101 | -7/Garrison | Triggered checkpoint 11277 | -7/Garrison | Triggered checkpoint 11352 | -7/Garrison | Discovered new exit (range 10) 11365 | -7/Garrison | Build established: Tank 11422 | -7/Garrison | Triggered checkpoint 11521 | -7/Garrison | Spotted B-75 Beast 11877 | -7/Garrison | Destroyed B-75 Beast 11899 | -7/Garrison | Discovered new exit (range 12) 11964 | -7/Garrison | Triggered checkpoint 11991 | -7/Garrison | Garrison Relay disabled 12223 | -7/Garrison | Build established: Scavenger-Tank 12329 | -7/Garrison | Discovered new exit (range 10) 12363 | -7/Garrison | Expanded RIF knowledge: Watcher Feeds 12500 | -7/Garrison | Garrison Relay disabled 12905 | -7/Garrison | Build established: Hauler-Mutant 13662 | -7/Garrison | Phase Generator disabled 14159 | -7/Garrison | Entered Factory 14159 | -6/Factory | Evolved 2 slots: Utility x2 14581 | -6/Factory | Garrison activated, responded to threat 14630 | -6/Factory | Lost 4 parts (1u3w) 14665 | -6/Factory | Destroyed 13 combat bots 14679 | -6/Factory | Lost 7 parts (4u3w) 14907 | -6/Factory | Build established: Hauler-Tank 15106 | -6/Factory | Sucked down chute 15106 | -6/Factory | Entered Waste 15121 | -6/Waste | EMP discharged 15125 | -6/Waste | Spotted C-40 Crusher 15166 | -6/Waste | Spotted C-40 Crusher 15179 | -6/Waste | Spotted C-40 Crusher 15221 | -6/Waste | EMP discharged 15221 | -6/Waste | System corruption reached 10% 15242 | -6/Waste | Spotted C-40 Crusher 15250 | -6/Waste | Build established: Hauler-Mutant 15282 | -6/Waste | Destroyed C-40 Crusher 15288 | -6/Waste | Found Damper Plating 15309 | -6/Waste | Spotted C-40 Crusher 15321 | -6/Waste | EMP discharged 15343 | -6/Waste | Spotted C-40 Crusher 15421 | -6/Waste | EMP discharged 15466 | -6/Waste | Destroyed C-40 Crusher 15521 | -6/Waste | EMP discharged 15549 | -6/Waste | Discovered new exit (range 13) 15621 | -6/Waste | EMP discharged 15702 | -6/Waste | Destroyed C-40 Crusher 15721 | -6/Waste | EMP discharged 15821 | -6/Waste | EMP discharged 15886 | -6/Waste | Destroyed C-40 Crusher 15921 | -6/Waste | EMP discharged 15936 | -6/Waste | Destroyed C-40 Crusher 15947 | -6/Waste | Found Damper Plating 16021 | -6/Waste | EMP discharged 16029 | -6/Waste | Destroyed C-40 Crusher 16121 | -6/Waste | EMP discharged 16211 | -6/Waste | Entered Factory 16779 | -6/Factory | Spotted B-75 Beast 17222 | -6/Factory | Build established: Hauler-Tank 17647 | -6/Factory | Discovered new exit (range 12) 17792 | -6/Factory | Identified exit to Lower Caves 17792 | -6/Factory | Identified exit to Extension 18421 | -6/Factory | Entered Extension 18590 | -6/Extension | Spotted B-75 Beast 18624 | -6/Extension | Destroyed B-75 Beast 18632 | -6/Extension | Spotted B-75 Beast 18646 | -6/Extension | Disrupted transfer network 18653 | -6/Extension | Destroyed B-75 Beast 18702 | -6/Extension | Build established: Hauler-Mutant 18771 | -6/Extension | First assault squad dispatched 18891 | -6/Extension | Destroyed 8 combat bots 19101 | -6/Extension | Build established: Hauler-Tank 20457 | -6/Extension | Discovered new exit (range 10) 20461 | -6/Extension | Discovered new exit (range 6) 20997 | -6/Extension | Rescued A7 21054 | -6/Extension | Build established: Hauler-Mutant 21364 | -6/Extension | Rescued a captive Derelict 21375 | -6/Extension | Rescued a captive Derelict 21390 | -6/Extension | Rescued a captive Derelict 21391 | -6/Extension | Rescued a captive Derelict 21461 | -6/Extension | Rescued a captive Derelict 21510 | -6/Extension | Rescued a captive Derelict 21546 | -6/Extension | Rescued a captive Derelict 21586 | -6/Extension | Build established: Commander-Mutant 21606 | -6/Extension | Rescued a captive Derelict 21607 | -6/Extension | Rescued a captive Derelict 21735 | -6/Extension | Entered Cetus 21735 | -6/Cetus | Accompanied by 18 allies (A7) 21740 | -6/Cetus | Acquired a Cetus Manufacturing Module code from A7 21768 | -6/Cetus | Spotted Cetus Guard 21768 | -6/Cetus | Spotted Cetus Guard 21770 | -6/Cetus | Spotted Cetus Guard 21770 | -6/Cetus | Spotted Cetus Guard 21779 | -6/Cetus | Allies destroyed Cetus Guard 21783 | -6/Cetus | Allies destroyed Cetus Guard 21787 | -6/Cetus | Allies destroyed Cetus Guard 21899 | -6/Cetus | Started Cetus Manufacturing Module 21924 | -6/Cetus | Manufactured an Enhanced Grunt 21949 | -6/Cetus | Manufactured an Enhanced Grunt 21974 | -6/Cetus | Manufactured an Enhanced Grunt 21999 | -6/Cetus | Manufactured an Enhanced Grunt 22024 | -6/Cetus | Manufactured an Enhanced Grunt 22060 | -6/Cetus | Discovered new exit (range 15) 22102 | -6/Cetus | Discovered new exit (range 27) 22117 | -6/Cetus | Spotted Cetus Guard 22117 | -6/Cetus | Spotted Cetus Guard 22119 | -6/Cetus | Spotted Cetus Guard 22119 | -6/Cetus | Spotted Cetus Guard 22126 | -6/Cetus | Allies destroyed Cetus Guard 22129 | -6/Cetus | Allies destroyed Cetus Guard 22132 | -6/Cetus | Allies destroyed Cetus Guard 22133 | -6/Cetus | Allies destroyed Cetus Guard 22143 | -6/Cetus | Met Revision 17 22271 | -6/Cetus | Escorted A7 to Cetus Mainframe 22333 | -6/Cetus | Entered Archives 22333 | -6/Archives | Accompanied by 6 allies (A7) 22338 | -6/Archives | Received a hacking code to weaken MAIN.C 22497 | -6/Archives | Unable to access archive contents 22503 | -6/Archives | Discovered new exit (range 15) 22515 | -6/Archives | Unable to access archive contents 22537 | -6/Archives | Unable to access archive contents 22545 | -6/Archives | Discovered new exit (range 15) 22557 | -6/Archives | Unable to access archive contents 22626 | -6/Archives | Build established: Hauler-Tank 22763 | -6/Archives | Discovered new exit (range 16) 23635 | -6/Archives | Entered Hub_04(d) 23635 | -6/Hub_04(d) | Accompanied by 3 allies 23768 | -6/Hub_04(d) | Discovered new exit (range 3) 23971 | -6/Hub_04(d) | Network Hub disabled 23973 | -6/Hub_04(d) | Network Hub disabled 23977 | -6/Hub_04(d) | Entered Factory 23977 | -5/Factory | Evolved 2 slots: Propulsion x2 24016 | -5/Factory | Identified exit to Upper Caves 24234 | -5/Factory | Fabricated O-16 Technician (x1) 24262 | -5/Factory | Build established: Scavenger-Tank 24275 | -5/Factory | Local fabrication network quarantined 24277 | -5/Factory | First assault squad dispatched 24316 | -5/Factory | Fabricated O-16 Technician? 24553 | -5/Factory | Found Prototype Processor 24553 | -5/Factory | Identified Exp. Signal Interpreter 24959 | -5/Factory | Identified exit to Garrison 24959 | -5/Factory | Entered Garrison 25296 | -5/Garrison | Triggered checkpoint 25546 | -5/Garrison | Triggered checkpoint 25596 | -5/Garrison | Discovered new exit (range 10) 25855 | -5/Garrison | Discovered new exit (range 14) 25993 | -5/Garrison | Build established: Scavenger-Mutant 26004 | -5/Garrison | Triggered checkpoint 26152 | -5/Garrison | Discovered new exit (range 15) 26189 | -5/Garrison | Expanded RIF knowledge: Hotswap 26835 | -5/Garrison | Build established: Hauler-Skirmisher 27018 | -5/Garrison | Triggered checkpoint 27078 | -5/Garrison | Garrison Relay disabled 27224 | -5/Garrison | Triggered checkpoint 27271 | -5/Garrison | Garrison Relay disabled 27426 | -5/Garrison | Entered Factory 27613 | -5/Factory | Repaired Centrium Medium Armor Plating 27726 | -5/Factory | First assault squad dispatched 27743 | -5/Factory | Build established: Hauler-Mutant 28401 | -5/Factory | Garrison activated, responded to threat 28572 | -5/Factory | Identified exit to Garrison 28572 | -5/Factory | Entered Garrison 28869 | -5/Garrison | Build established: Scavenger-Tank 28959 | -5/Garrison | Triggered checkpoint 29009 | -5/Garrison | Destroyed 9 combat bots 29199 | -5/Garrison | Discovered new exit (range 15) 29236 | -5/Garrison | Expanded RIF knowledge: Program Shield 29344 | -5/Garrison | Triggered checkpoint 29395 | -5/Garrison | Triggered checkpoint 29655 | -5/Garrison | Discovered new exit (range 12) 29766 | -5/Garrison | Triggered checkpoint 30376 | -5/Garrison | Build established: Hauler-Mutant 30853 | -5/Garrison | Entered Factory 30853 | -4/Factory | Accompanied by 7 allies 30853 | -4/Factory | Evolved 2 slots: Utility x2 30984 | -4/Factory | Garrison activated, responded to threat 31775 | -4/Factory | Sucked down chute 31775 | -4/Factory | Entered Waste 31847 | -4/Waste | Spotted C-40 Crusher 31871 | -4/Waste | Spotted C-40 Crusher 31921 | -4/Waste | Spotted C-40 Crusher 31972 | -4/Waste | Discovered new exit (range 13) 32071 | -4/Waste | Spotted C-40 Crusher 32082 | -4/Waste | Spotted C-40 Crusher 32149 | -4/Waste | Spotted C-40 Crusher 32256 | -4/Waste | Destroyed C-40 Crusher 32270 | -4/Waste | Destroyed C-40 Crusher 32287 | -4/Waste | Found Damper Plating 32290 | -4/Waste | Found Damper Plating 32682 | -4/Waste | Destroyed C-40 Crusher 32725 | -4/Waste | Destroyed C-40 Crusher 32804 | -4/Waste | Destroyed C-40 Crusher 32974 | -4/Waste | Destroyed C-40 Crusher 32984 | -4/Waste | Found Damper Plating 33251 | -4/Waste | Warlord forces began an assault 33496 | -4/Waste | Entered Factory 33496 | -4/Factory | Accompanied by 19 allies 34133 | -4/Factory | P-70 Sage assimilated allied LY-EEV(g) 34778 | -4/Factory | First assault squad dispatched 34799 | -4/Factory | Crushed by falling debris 34990 | -4/Factory | Crushed by falling debris 34991 | -4/Factory | Crushed by falling debris 34991 | -4/Factory | System corruption reached 10% 34993 | -4/Factory | Crushed by falling debris 35018 | -4/Factory | Garrison activated, responded to threat 35130 | -4/Factory | Lost 19 parts (2p5n5u7w) 35138 | -4/Factory | Core integrity fell below 50% 35151 | -4/Factory | Core integrity fell below 20% 35155 | -4/Factory | Destroyed 11 combat bots 35155 | -4/Factory | Destroyed by G-67 Veteran with Electrolaser Last Messages --------------- 35142_ Penetrated by Slug. 35143_ System corrupted: Centrium Medium Armor Plating rejected. 35143_ Penetrated by Slug. 35143_ Antimatter Reactor destroyed. 35143_ Slug penetrates Wall. 35144_ Imp. Cooling System destroyed. 35144_ Imp. KE Penetrator destroyed. 35144_ KE Penetrator destroyed. 35145_ Slug penetrates Wall. 35146_ Centrium Medium Armor Plating destroyed. 35146_ Penetrated by Slug. 35146_ Railgun destroyed. 35146_ Slug penetrates Wall. 35146_ Slug penetrates Garrison Access. 35148_ G-67 Veteran IFF system glitched. 35148_ Penetrated by Slug. 35152_ G-73 Enforcer destroyed. 35153_ Penetrated by Slug. 35153_ Slug penetrates Wall. 35153_ Penetrated by Slug. Map ----- +----------------------------------------------------+ | ?????????# # #????????????????????????????????? | | ?????????# #! #????????????????????????????????? | | ########## ###+##????????????????????????????????? | | ?# #?????????????????????????????????????? | | " " "???# #?????????????????????????????????????? | | " " "???# #?????????????????????????????????????? | | " " ????? ??????????????????????????????????????? | | " " ????? ??????????????????????????????????????? | | " " ????? ??????????????????????????????????????? | | " " ????? ??????????????????????????????????????? | | " " ????? ??????????????????????????????????????? | | " " ????? ??????????????????????????????????????? | | " " ????? ??????????????????????????????????????? | | ??????????????"" ????""??????????????????? | | #????????????""A??? ""??????????????????? | | ##########? "????????"" """ ""??????????????????? | | ########## ????? ?? ???????????????????? | | "????"" """ """ "?" "???????????????? | | "????"" """ """ ?"" ????????????????? | | "???""" """ """ """?????????????????? | | ?? ??????????????????? | | ??? ???????????????????? | | +############???????#"" ""###??#?????????????????? | | #???????#""G""%## *#?????????????????? | | """"""""" #????########;#![%###u #????????? | | #??### ;]!=!!@%!=|=%Y #????????? | | """"""""" #### ###!*![%%%|%%=h# #????????? | | # # #### ====%!g%=%g s ! ???????????? | | """"""""" ## ##??#!!==!!!%!% g % % ?????????? | | =####???# ===!% ! !!h# ?????????? | | """"""""" #??????# %!!!| = ? ??????????? | | #??????# *=% =! # ? ??????????? | | """"""""" #??????# ! * #? ????????????? | | ? #??????# g; ? A ???????????? | | ?? #??????# # ?? ???????????? | | #???#########??????# # ?????????????? | | ???????????????????# ! #? ?????????????? | | ???????????????????##;;#;########????????????????? | | ???????????????????? #? ????????????????????????? | | ????????????????????# ?? ????????????????????????? | | ????????????????????????#????????????????????????? | | ########?????????????????????????????????????????? | | #?????????????????????????????????????????? | | #?????????????????????????????????????????? | | #?????????????????????????????????????????? | | """"#?????????????????????????????????????????? | | """"#?????????????????????????????????????????? | | """"#?????????????????????????????????????????? | | """"#?????????????????????????????????????????? | | #?????????????????????????????????????????? | +----------------------------------------------------+ Best States ------------- Heat Dissipation 70 Coolant Potential 80 Energy Generation 25 Energy Capacity 950 Matter Stores 300 Matter Capacity 300 Sight Range 16 Terrain Scan Density 10 EM Shielding 2 Armor Coverage 1350 Resistance: KI 30 Resistance: TH 15 Resistance: EM 90 Propulsion Shielding 90 Weapon Shielding 66 Evasion (%) 40 Target Analysis 5 Armor Integrity Analysis 33 Recoil Reduction 4 Matter Filtering 30 Particle Charging 25 Kinecelleration 30 Offensive Hacking 10 Defensive Hacking 10 Relay Coupler Types 30 Relay Coupler Value 1 Item Schematics ----------------- Thermal Shield | -8/Storage | Hacked Adv. Treads | -7/Factory | Scanalyzed Hrd. Medium Armor Plating | -7/Factory | Scanalyzed Imp. System Shield | -6/Factory | Hacked Micro-nuke Launcher | -5/Factory | Hacked Robot Schematics ------------------ A-02 Transporter | -10/Materials | Hacked O-16 Technician | -10/Materials | Hacked Fabricated ------------ O-16 Technician | x1 | -5/Factory O-16 Technician | x1 | -5/Factory Alien Tech Used ----------------- None Achievements -------------- None Challenges ------------ None Game ------ Seed LinkedThunderMantle Manual? 0 Play Time 05:33:25 Cumulative 115.1 hours Start 2021.12.04 @ 22:45:48 End 2021.12.05 @ 04:51:07 Sessions 1 Manual Loads 0 Difficulty Rogue Special Mode None Game No. 51 Rogue 51 Adventurer 0 Explorer 0 Win Type - Total 2 Types 1/0/0/0/1/0/0/0/0 Lore% 36 Gallery% 59 Achievement% 49 Wizard Run 0 Options --------- ASCII 0 Keyboard 0 Movement Mouse Keybinds 0 Fullscreen 0 Font 28/SmallcapsGlow Map View 72x54 Tactical HUD 1 Map Filters NONE Filters NONE Steam 1 RUN: 5b8ced6f-9e62-45a7-8cf2-63090eeb0c22